[Event "Late-Titled-Tuesday-Blitz-December-26-2023"]
[Site "Chess.com"]
[Date "2023.12.26"]
[Round "2"]
[White "PushingpawnsNYC"]
[Black "fks_stal_mielec"]
[Result "0-1"]
[WhiteElo "2493"]
[BlackElo "2334"]
[TimeControl "180+1"]
[EndTime "14:17:30 PST"]
[Termination "fks_stal_mielec won on time"]

1. e3 {[%clk 0:02:45.6]} 1... c5 {[%clk 0:02:59.3]} 2. d4 {[%clk 0:02:40.7]}
2... Nf6 {[%clk 0:02:55.9]} 3. Nf3 {[%clk 0:02:35.3]} 3... g6 {[%clk 0:02:55.2]}
4. Be2 {[%clk 0:02:34.8]} 4... Bg7 {[%clk 0:02:55]} 5. O-O {[%clk 0:02:35.4]}
5... cxd4 {[%clk 0:02:55]} 6. exd4 {[%clk 0:02:34.4]} 6... d5 {[%clk 0:02:54.2]}
7. Nbd2 {[%clk 0:02:31.2]} 7... O-O {[%clk 0:02:54.1]} 8. Ne5 {[%clk 0:02:30.4]}
8... Nc6 {[%clk 0:02:52.9]} 9. Ndf3 {[%clk 0:02:29.2]} 9... Bf5 {[%clk
0:02:47.5]} 10. c3 {[%clk 0:02:23.7]} 10... Rc8 {[%clk 0:02:42.5]} 11. Re1
{[%clk 0:02:22.2]} 11... Bg4 {[%clk 0:02:37.7]} 12. Bf4 {[%clk 0:02:08.8]} 12...
Bxf3 {[%clk 0:02:36.9]} 13. Bxf3 {[%clk 0:02:07.2]} 13... e6 {[%clk 0:02:35]}
14. Qd2 {[%clk 0:02:05.5]} 14... b5 {[%clk 0:02:27.6]} 15. Bh6 {[%clk
0:01:59.6]} 15... Nxe5 {[%clk 0:02:15.8]} 16. dxe5 {[%clk 0:01:51.5]} 16... Nd7
{[%clk 0:02:14.9]} 17. Bxg7 {[%clk 0:01:49.9]} 17... Kxg7 {[%clk 0:02:14.9]} 18.
Qd4 {[%clk 0:01:45.1]} 18... a5 {[%clk 0:02:04.5]} 19. Bxd5 {[%clk 0:01:22.9]}
19... Nb6 {[%clk 0:01:36.3]} 20. Bf3 {[%clk 0:01:09.2]} 20... Qxd4 {[%clk
0:01:35.2]} 21. cxd4 {[%clk 0:01:08.8]} 21... Rc2 {[%clk 0:01:35.1]} 22. Re2
{[%clk 0:01:07.3]} 22... Rfc8 {[%clk 0:01:34.5]} 23. Kf1 {[%clk 0:00:52.7]}
23... Rxe2 {[%clk 0:01:29.6]} 24. Bxe2 {[%clk 0:00:49]} 24... b4 {[%clk
0:01:29.8]} 25. Ke1 {[%clk 0:00:43.2]} 25... Rc2 {[%clk 0:01:19.5]} 26. Rb1
{[%clk 0:00:38.8]} 26... Na4 {[%clk 0:01:08.1]} 27. Kd1 {[%clk 0:00:37]} 27...
Rxb2 {[%clk 0:00:57.4]} 28. Rxb2 {[%clk 0:00:33.4]} 28... Nxb2+ {[%clk
0:00:57.7]} 29. Kc2 {[%clk 0:00:33.1]} 29... Na4 {[%clk 0:00:57.9]} 30. Kb3
{[%clk 0:00:29.5]} 30... Nb6 {[%clk 0:00:57]} 31. Bb5 {[%clk 0:00:20.5]} 31...
f6 {[%clk 0:00:54.6]} 32. f4 {[%clk 0:00:19.2]} 32... fxe5 {[%clk 0:00:54.2]}
33. fxe5 {[%clk 0:00:15.4]} 33... Kf7 {[%clk 0:00:53.6]} 34. Bc6 {[%clk
0:00:10.9]} 34... Ke7 {[%clk 0:00:51.3]} 35. g4 {[%clk 0:00:10.9]} 35... g5
{[%clk 0:00:51]} 36. h3 {[%clk 0:00:10.2]} 36... h6 {[%clk 0:00:50.8]} 37. Be4
{[%clk 0:00:09.7]} 37... Kd7 {[%clk 0:00:50.4]} 38. Bh7 {[%clk 0:00:09]} 38...
Kc6 {[%clk 0:00:47.9]} 39. Be4+ {[%clk 0:00:09]} 39... Kb5 {[%clk 0:00:46.4]}
40. Bf3 {[%clk 0:00:06.5]} 40... a4+ {[%clk 0:00:44.1]} 41. Kc2 {[%clk
0:00:05.3]} 41... Kc4 {[%clk 0:00:44.6]} 42. Bc6 {[%clk 0:00:02.1]} 42... Kxd4
{[%clk 0:00:43.7]} 0-1

[Event "Late-Titled-Tuesday-Blitz-December-26-2023"]
[Site "Chess.com"]
[Date "2023.12.26"]
[Round "2"]
[White "MaestroCheck"]
[Black "artin10862"]
[Result "1/2-1/2"]
[WhiteElo "2580"]
[BlackElo "2900"]
[TimeControl "180+1"]
[EndTime "14:17:32 PST"]
[Termination "Game drawn by repetition"]

1. e4 {[%clk 0:03:00.9]} 1... e5 {[%clk 0:02:59.7]} 2. Nf3 {[%clk 0:03:00.1]}
2... Nc6 {[%clk 0:03:00]} 3. Bc4 {[%clk 0:03:00.4]} 3... Bc5 {[%clk 0:02:52.4]}
4. Nc3 {[%clk 0:02:59.6]} 4... d6 {[%clk 0:02:42.6]} 5. d3 {[%clk 0:02:57.2]}
5... h6 {[%clk 0:02:40.6]} 6. Na4 {[%clk 0:02:55.1]} 6... Bb6 {[%clk 0:02:26.6]}
7. O-O {[%clk 0:02:51.5]} 7... Nf6 {[%clk 0:02:26.4]} 8. a3 {[%clk 0:02:48.2]}
8... O-O {[%clk 0:02:25.4]} 9. h3 {[%clk 0:02:46.4]} 9... Be6 {[%clk 0:02:21.5]}
10. Bxe6 {[%clk 0:02:44.4]} 10... fxe6 {[%clk 0:02:22.4]} 11. Nxb6 {[%clk
0:02:44.9]} 11... axb6 {[%clk 0:02:22.4]} 12. c3 {[%clk 0:02:42.3]} 12... Qe8
{[%clk 0:02:20.8]} 13. b4 {[%clk 0:02:42.6]} 13... Nh5 {[%clk 0:02:18.2]} 14.
Kh2 {[%clk 0:02:40.9]} 14... b5 {[%clk 0:02:15.5]} 15. Ra2 {[%clk 0:02:40.3]}
15... Kh8 {[%clk 0:02:13.6]} 16. Be3 {[%clk 0:02:30.6]} 16... Ne7 {[%clk
0:02:09.4]} 17. d4 {[%clk 0:02:26.5]} 17... exd4 {[%clk 0:01:53.6]} 18. Nxd4
{[%clk 0:02:15.6]} 18... Rf6 {[%clk 0:01:31.6]} 19. g4 {[%clk 0:02:04.8]} 19...
Nf4 {[%clk 0:01:27.3]} 20. Bxf4 {[%clk 0:02:05]} 20... Rxf4 {[%clk 0:01:28]} 21.
Nxe6 {[%clk 0:02:05.6]} 21... Rxe4 {[%clk 0:01:28.6]} 22. Nxc7 {[%clk 0:02:06]}
22... Qf7 {[%clk 0:01:29]} 23. Nxa8 {[%clk 0:02:05.2]} 23... Qxa2 {[%clk
0:01:28.2]} 24. Qxd6 {[%clk 0:02:04.1]} 24... Qe2 {[%clk 0:01:10.2]} 25. Qd1
{[%clk 0:02:02.5]} 25... Qc4 {[%clk 0:01:06.4]} 26. Re1 {[%clk 0:02:01.4]} 26...
Nd5 {[%clk 0:01:04.7]} 27. Rxe4 {[%clk 0:01:27.9]} 27... Qxe4 {[%clk 0:01:05.6]}
28. Qd4 {[%clk 0:01:28.4]} 28... Qf3 {[%clk 0:00:49.3]} 29. Qc5 {[%clk
0:01:14.9]} 29... h5 {[%clk 0:00:27.6]} 30. Nb6 {[%clk 0:01:04.3]} 30... Qf4+
{[%clk 0:00:16.2]} 31. Kg1 {[%clk 0:01:01.4]} 31... Qc1+ {[%clk 0:00:15.2]} 32.
Kh2 {[%clk 0:01:01.7]} 32... Qf4+ {[%clk 0:00:14.1]} 33. Kg1 {[%clk 0:01:01.7]}
33... Nxb6 {[%clk 0:00:13.9]} 34. Qxb6 {[%clk 0:01:01.2]} 34... hxg4 {[%clk
0:00:14.5]} 35. hxg4 {[%clk 0:01:01.6]} 35... Qxg4+ {[%clk 0:00:14.7]} 36. Kh2
{[%clk 0:01:02]} 36... Qh5+ {[%clk 0:00:13.7]} 37. Kg2 {[%clk 0:01:02.1]} 37...
Qd5+ {[%clk 0:00:14.3]} 38. Kh2 {[%clk 0:01:02.4]} 38... Kg8 {[%clk 0:00:14.4]}
39. Qe3 {[%clk 0:01:00.1]} 39... Qc6 {[%clk 0:00:14.5]} 40. Qd4 {[%clk
0:00:56.9]} 40... Kf7 {[%clk 0:00:14.1]} 41. Kg3 {[%clk 0:00:56.1]} 41... Qg6+
{[%clk 0:00:12.6]} 42. Kf4 {[%clk 0:00:56.2]} 42... Qc6 {[%clk 0:00:11.3]} 43.
Ke3 {[%clk 0:00:54.9]} 43... Qe6+ {[%clk 0:00:07.8]} 44. Kd3 {[%clk 0:00:54.9]}
44... Qf5+ {[%clk 0:00:07.1]} 45. Ke3 {[%clk 0:00:54.7]} 45... Qe6+ {[%clk
0:00:07]} 46. Qe4 {[%clk 0:00:54.4]} 46... Qb6+ {[%clk 0:00:06.8]} 47. Qd4
{[%clk 0:00:54.6]} 47... Qe6+ {[%clk 0:00:07]} 1/2-1/2

[Event "Late-Titled-Tuesday-Blitz-December-26-2023"]
[Site "Chess.com"]
[Date "2023.12.26"]
[Round "2"]
[White "TimGrutter03"]
[Black "chegueps"]
[Result "1-0"]
[WhiteElo "2547"]
[BlackElo "2777"]
[TimeControl "180+1"]
[EndTime "14:17:38 PST"]
[Termination "TimGrutter03 won by checkmate"]

1. e4 {[%clk 0:03:00.9]} 1... Nf6 {[%clk 0:02:53.4]} 2. e5 {[%clk 0:03:00.4]}
2... Nd5 {[%clk 0:02:53.4]} 3. d4 {[%clk 0:03:00.2]} 3... d6 {[%clk 0:02:53.9]}
4. Nf3 {[%clk 0:03:00.2]} 4... g6 {[%clk 0:02:53.4]} 5. Be2 {[%clk 0:02:59.9]}
5... Bg7 {[%clk 0:02:52.2]} 6. O-O {[%clk 0:03:00.4]} 6... O-O {[%clk
0:02:51.6]} 7. b3 {[%clk 0:02:53.5]} 7... dxe5 {[%clk 0:02:42.2]} 8. Nxe5 {[%clk
0:02:51.6]} 8... c5 {[%clk 0:02:42.1]} 9. Bb2 {[%clk 0:02:48.2]} 9... Nc6 {[%clk
0:02:34.2]} 10. Nxc6 {[%clk 0:02:46.8]} 10... bxc6 {[%clk 0:02:35.1]} 11. Bf3
{[%clk 0:02:42.5]} 11... Nf4 {[%clk 0:02:17.8]} 12. Qd2 {[%clk 0:02:25.8]} 12...
Bh6 {[%clk 0:02:14.7]} 13. Qc3 {[%clk 0:02:06.2]} 13... Ba6 {[%clk 0:01:44.4]}
14. Re1 {[%clk 0:02:02.5]} 14... Bg7 {[%clk 0:01:22.4]} 15. Qxc5 {[%clk
0:01:56.5]} 15... Ne6 {[%clk 0:01:07.3]} 16. Qxc6 {[%clk 0:01:47]} 16... Nxd4
{[%clk 0:01:03.5]} 17. Bxd4 {[%clk 0:01:34.3]} 17... Qxd4 {[%clk 0:01:03.2]} 18.
c3 {[%clk 0:01:28.4]} 18... Qd3 {[%clk 0:01:02.3]} 19. Be2 {[%clk 0:01:17.3]}
19... Qxe2 {[%clk 0:00:40.8]} 20. Rxe2 {[%clk 0:01:18.2]} 20... Bxe2 {[%clk
0:00:41.2]} 21. Qe4 {[%clk 0:01:09.6]} 21... Bg4 {[%clk 0:00:38.9]} 22. Qxg4
{[%clk 0:01:01]} 22... Rad8 {[%clk 0:00:32.2]} 23. Na3 {[%clk 0:00:51.8]} 23...
Bxc3 {[%clk 0:00:29.3]} 24. Rd1 {[%clk 0:00:50.5]} 24... h5 {[%clk 0:00:28.4]}
25. Qe2 {[%clk 0:00:46.9]} 25... Bf6 {[%clk 0:00:24]} 26. g3 {[%clk 0:00:43.4]}
26... Kg7 {[%clk 0:00:22.7]} 27. Nc4 {[%clk 0:00:42.5]} 27... Rxd1+ {[%clk
0:00:19.4]} 28. Qxd1 {[%clk 0:00:41.6]} 28... e6 {[%clk 0:00:20.3]} 29. Qd7
{[%clk 0:00:37.6]} 29... Rd8 {[%clk 0:00:21.2]} 30. Qxa7 {[%clk 0:00:36.4]}
30... h4 {[%clk 0:00:20.2]} 31. Kg2 {[%clk 0:00:36.2]} 31... g5 {[%clk
0:00:18.8]} 32. a4 {[%clk 0:00:30.7]} 32... Rh8 {[%clk 0:00:17.9]} 33. gxh4
{[%clk 0:00:29.5]} 33... Rxh4 {[%clk 0:00:16.9]} 34. Nd6 {[%clk 0:00:26.4]}
34... Rf4 {[%clk 0:00:13.9]} 35. Qxf7+ {[%clk 0:00:25.5]} 35... Kh6 {[%clk
0:00:13.3]} 36. Qxe6 {[%clk 0:00:24.6]} 36... Kh5 {[%clk 0:00:12.1]} 37. Nf5
{[%clk 0:00:19]} 37... Bc3 {[%clk 0:00:07.4]} 38. Qh6+ {[%clk 0:00:17.3]} 38...
Kg4 {[%clk 0:00:07.6]} 39. Ne3# {[%clk 0:00:18.2]} 1-0

[Event "Late-Titled-Tuesday-Blitz-December-26-2023"]
[Site "Chess.com"]
[Date "2023.12.26"]
[Round "2"]
[White "Championnn-9"]
[Black "lucasmito"]
[Result "0-1"]
[WhiteElo "2518"]
[BlackElo "2737"]
[TimeControl "180+1"]
[EndTime "14:17:38 PST"]
[Termination "lucasmito won by checkmate"]

1. Nf3 {[%clk 0:03:00.9]} 1... Nf6 {[%clk 0:03:00.3]} 2. g3 {[%clk 0:02:58.7]}
2... d5 {[%clk 0:03:00]} 3. Bg2 {[%clk 0:02:59.1]} 3... c6 {[%clk 0:02:56.7]} 4.
O-O {[%clk 0:02:59.2]} 4... Bg4 {[%clk 0:02:57.3]} 5. Ne5 {[%clk 0:02:56.9]}
5... Bf5 {[%clk 0:02:56.9]} 6. d3 {[%clk 0:02:56.7]} 6... Nbd7 {[%clk
0:02:56.9]} 7. Nxd7 {[%clk 0:02:54.8]} 7... Qxd7 {[%clk 0:02:57.3]} 8. Nd2
{[%clk 0:02:55.1]} 8... Bh3 {[%clk 0:02:55.8]} 9. e4 {[%clk 0:02:53.7]} 9... h5
{[%clk 0:02:51.3]} 10. Nf3 {[%clk 0:02:42.3]} 10... Bxg2 {[%clk 0:02:46.2]} 11.
Kxg2 {[%clk 0:02:42.1]} 11... dxe4 {[%clk 0:02:47]} 12. dxe4 {[%clk 0:02:38.1]}
12... Qxd1 {[%clk 0:02:47.9]} 13. Rxd1 {[%clk 0:02:37.8]} 13... Nxe4 {[%clk
0:02:48.8]} 14. Bf4 {[%clk 0:02:33.1]} 14... e6 {[%clk 0:02:04.9]} 15. Rd4
{[%clk 0:02:27.8]} 15... Nf6 {[%clk 0:01:59.6]} 16. b4 {[%clk 0:02:11]} 16... a5
{[%clk 0:01:49.8]} 17. bxa5 {[%clk 0:02:04.5]} 17... Rxa5 {[%clk 0:01:48.1]} 18.
Rb1 {[%clk 0:02:05.1]} 18... b5 {[%clk 0:01:35.4]} 19. Ne5 {[%clk 0:01:56.4]}
19... Ra6 {[%clk 0:01:27.1]} 20. c4 {[%clk 0:01:49.7]} 20... b4 {[%clk
0:01:25.1]} 21. Rbd1 {[%clk 0:01:48.1]} 21... Be7 {[%clk 0:01:20.9]} 22. R1d2
{[%clk 0:01:15.2]} 22... h4 {[%clk 0:01:14.5]} 23. h3 {[%clk 0:00:56.4]} 23...
hxg3 {[%clk 0:01:13.8]} 24. fxg3 {[%clk 0:00:57.3]} 24... c5 {[%clk 0:00:59.4]}
25. R4d3 {[%clk 0:00:56.3]} 25... O-O {[%clk 0:00:54.1]} 26. Nd7 {[%clk
0:00:53.2]} 26... Nxd7 {[%clk 0:00:49]} 27. Rxd7 {[%clk 0:00:52.9]} 27... Bf6
{[%clk 0:00:33.4]} 28. Rc7 {[%clk 0:00:53.1]} 28... Bd4 {[%clk 0:00:31.1]} 29.
Rb7 {[%clk 0:00:44.3]} 29... e5 {[%clk 0:00:30.5]} 30. Bg5 {[%clk 0:00:31.9]}
30... f6 {[%clk 0:00:30.2]} 31. Bh4 {[%clk 0:00:11.3]} 31... g5 {[%clk
0:00:30.7]} 32. Kh2 {[%clk 0:00:11.6]} 32... gxh4 {[%clk 0:00:26.6]} 33. gxh4
{[%clk 0:00:12.5]} 33... Kh8 {[%clk 0:00:25.7]} 34. Rg2 {[%clk 0:00:12.6]} 34...
Rg8 {[%clk 0:00:26.4]} 35. Re2 {[%clk 0:00:11.2]} 35... f5 {[%clk 0:00:23.4]}
36. h5 {[%clk 0:00:11.5]} 36... f4 {[%clk 0:00:23.7]} 37. Re4 {[%clk 0:00:09.7]}
37... Rxa2+ {[%clk 0:00:21.3]} 38. Kh1 {[%clk 0:00:10]} 38... Rg1# {[%clk
0:00:21.2]} 0-1

[Event "Late-Titled-Tuesday-Blitz-December-26-2023"]
[Site "Chess.com"]
[Date "2023.12.26"]
[Round "2"]
[White "Cipy77"]
[Black "mbojan"]
[Result "0-1"]
[WhiteElo "2578"]
[BlackElo "2913"]
[TimeControl "180+1"]
[EndTime "14:17:41 PST"]
[Termination "mbojan won by resignation"]

1. Nf3 {[%clk 0:03:00.9]} 1... g6 {[%clk 0:02:58.8]} 2. d4 {[%clk 0:03:00]} 2...
Bg7 {[%clk 0:02:56.6]} 3. c4 {[%clk 0:03:00]} 3... d6 {[%clk 0:02:56.4]} 4. Nc3
{[%clk 0:02:59.9]} 4... e5 {[%clk 0:02:56.7]} 5. dxe5 {[%clk 0:02:58]} 5... dxe5
{[%clk 0:02:57.6]} 6. Qxd8+ {[%clk 0:02:58]} 6... Kxd8 {[%clk 0:02:58.5]} 7.
Bg5+ {[%clk 0:02:57.1]} 7... f6 {[%clk 0:02:57.8]} 8. O-O-O+ {[%clk 0:02:57.5]}
8... Nd7 {[%clk 0:02:51.7]} 9. Bh4 {[%clk 0:02:52.5]} 9... g5 {[%clk 0:02:09.3]}
10. Bg3 {[%clk 0:02:48.6]} 10... Ne7 {[%clk 0:01:53.4]} 11. h4 {[%clk
0:02:47.9]} 11... g4 {[%clk 0:01:53.3]} 12. Nd2 {[%clk 0:02:42.5]} 12... Nf5
{[%clk 0:01:51.5]} 13. Nde4 {[%clk 0:02:41.9]} 13... h5 {[%clk 0:01:45.4]} 14.
e3 {[%clk 0:02:38.1]} 14... c6 {[%clk 0:01:39.2]} 15. Bd3 {[%clk 0:02:34.3]}
15... Ke7 {[%clk 0:01:39.5]} 16. Bc2 {[%clk 0:02:27.3]} 16... Bh6 {[%clk
0:01:28.9]} 17. Kb1 {[%clk 0:02:26.3]} 17... Nf8 {[%clk 0:01:16.9]} 18. Bh2
{[%clk 0:02:22.2]} 18... Ng6 {[%clk 0:01:12.5]} 19. Ng3 {[%clk 0:02:06.3]} 19...
Ngxh4 {[%clk 0:01:04.2]} 20. Nxh5 {[%clk 0:01:59.4]} 20... Bg5 {[%clk
0:00:29.1]} 21. Ng3 {[%clk 0:01:56.1]} 21... Nxg3 {[%clk 0:00:28.7]} 22. Bxg3
{[%clk 0:01:54.2]} 22... Be6 {[%clk 0:00:27.3]} 23. Ne4 {[%clk 0:01:46.4]} 23...
Nxg2 {[%clk 0:00:27.3]} 24. Nxg5 {[%clk 0:01:43.4]} 24... fxg5 {[%clk
0:00:28.2]} 25. Bxe5 {[%clk 0:01:42.1]} 25... Rh3 {[%clk 0:00:28]} 26. Rhg1
{[%clk 0:01:34.4]} 26... Nh4 {[%clk 0:00:27.8]} 27. Bd6+ {[%clk 0:01:33]} 27...
Kf7 {[%clk 0:00:27.7]} 28. c5 {[%clk 0:01:29.4]} 28... Nf3 {[%clk 0:00:26]} 29.
Rg3 {[%clk 0:01:27.9]} 29... Rah8 {[%clk 0:00:22]} 30. b4 {[%clk 0:01:20.6]}
30... Rh1 {[%clk 0:00:22.2]} 31. Kb2 {[%clk 0:01:17.9]} 31... R1h2 {[%clk
0:00:07.7]} 32. Rf1 {[%clk 0:01:01.3]} 32... R8h3 {[%clk 0:00:07.7]} 33. Rxh3
{[%clk 0:00:56.4]} 33... Rxh3 {[%clk 0:00:08.6]} 34. Be4 {[%clk 0:00:54.5]}
34... Kf6 {[%clk 0:00:07.8]} 35. Bxf3 {[%clk 0:00:53.2]} 35... gxf3 {[%clk
0:00:08.7]} 36. Bg3 {[%clk 0:00:52.8]} 36... Bc4 {[%clk 0:00:09]} 37. Rd1 {[%clk
0:00:53]} 37... Rxg3 {[%clk 0:00:09]} 38. Rd6+ {[%clk 0:00:38.1]} 38... Ke5
{[%clk 0:00:09.2]} 39. Rd4 {[%clk 0:00:38.1]} 39... Ba6 {[%clk 0:00:07.9]} 40.
a4 {[%clk 0:00:26.2]} 40... Rg2 {[%clk 0:00:08]} 41. Rd2 {[%clk 0:00:25.2]}
41... Be2 {[%clk 0:00:07.6]} 0-1

[Event "Late-Titled-Tuesday-Blitz-December-26-2023"]
[Site "Chess.com"]
[Date "2023.12.26"]
[Round "2"]
[White "Alexander_Khlebovich"]
[Black "rrgchessmaster05"]
[Result "1-0"]
[WhiteElo "2742"]
[BlackElo "2517"]
[TimeControl "180+1"]
[EndTime "14:17:44 PST"]
[Termination "Alexander_Khlebovich won by checkmate"]

1. d4 {[%clk 0:03:00.9]} 1... Nf6 {[%clk 0:02:59.9]} 2. c4 {[%clk 0:03:00.2]}
2... e6 {[%clk 0:03:00.4]} 3. Nf3 {[%clk 0:03:00.8]} 3... Bb4+ {[%clk
0:03:00.6]} 4. Bd2 {[%clk 0:02:59.8]} 4... Qe7 {[%clk 0:03:01]} 5. g3 {[%clk
0:02:59.4]} 5... b6 {[%clk 0:02:59.4]} 6. Bg2 {[%clk 0:02:59.2]} 6... Bb7 {[%clk
0:02:59.9]} 7. O-O {[%clk 0:02:59.5]} 7... Bxd2 {[%clk 0:03:00.5]} 8. Nbxd2
{[%clk 0:02:58.5]} 8... O-O {[%clk 0:02:58.8]} 9. Qc2 {[%clk 0:02:55.6]} 9... c5
{[%clk 0:02:54.6]} 10. e4 {[%clk 0:02:49.7]} 10... g6 {[%clk 0:02:14.4]} 11. e5
{[%clk 0:02:34.5]} 11... Ne8 {[%clk 0:02:13.4]} 12. Ne4 {[%clk 0:02:34.6]} 12...
cxd4 {[%clk 0:02:05.2]} 13. Nxd4 {[%clk 0:02:31.1]} 13... Nc6 {[%clk 0:02:05.2]}
14. Nxc6 {[%clk 0:02:27.9]} 14... dxc6 {[%clk 0:01:59]} 15. Rad1 {[%clk
0:02:21]} 15... c5 {[%clk 0:01:57.6]} 16. Nf6+ {[%clk 0:02:02.4]} 16... Nxf6
{[%clk 0:01:04.7]} 17. exf6 {[%clk 0:02:03.3]} 17... Qc7 {[%clk 0:01:04.6]} 18.
Qd2 {[%clk 0:02:03.3]} 18... Kh8 {[%clk 0:01:02.3]} 19. Qd7 {[%clk 0:02:02.2]}
19... Qxd7 {[%clk 0:00:58.8]} 20. Rxd7 {[%clk 0:02:03.1]} 20... Bxg2 {[%clk
0:00:55.7]} 21. Kxg2 {[%clk 0:02:04]} 21... Kg8 {[%clk 0:00:46.7]} 22. Rfd1
{[%clk 0:01:59.6]} 22... a6 {[%clk 0:00:35.1]} 23. Rc7 {[%clk 0:01:55.6]} 23...
Rac8 {[%clk 0:00:34]} 24. Rxc8 {[%clk 0:01:51]} 24... Rxc8 {[%clk 0:00:34]} 25.
Rd6 {[%clk 0:01:50.6]} 25... Rb8 {[%clk 0:00:32.6]} 26. Kf3 {[%clk 0:01:48.8]}
26... Kf8 {[%clk 0:00:31.9]} 27. Rd7 {[%clk 0:01:45.6]} 27... h6 {[%clk
0:00:16.8]} 28. Ke4 {[%clk 0:01:43.1]} 28... Ke8 {[%clk 0:00:14.7]} 29. Re7+
{[%clk 0:01:43]} 29... Kf8 {[%clk 0:00:15.2]} 30. Ra7 {[%clk 0:01:43.1]} 30...
b5 {[%clk 0:00:15.6]} 31. b3 {[%clk 0:01:37.6]} 31... bxc4 {[%clk 0:00:15.6]}
32. bxc4 {[%clk 0:01:37.7]} 32... g5 {[%clk 0:00:06.3]} 33. Rxa6 {[%clk
0:01:31.6]} 33... Kg8 {[%clk 0:00:06.8]} 34. Ra7 {[%clk 0:01:31]} 34... Rb4
{[%clk 0:00:06.2]} 35. Kd3 {[%clk 0:01:28.8]} 35... Rb2 {[%clk 0:00:05.9]} 36.
a4 {[%clk 0:01:23.3]} 36... Rxf2 {[%clk 0:00:06.1]} 37. a5 {[%clk 0:01:22.4]}
37... Rxf6 {[%clk 0:00:06.7]} 38. Rc7 {[%clk 0:01:21.1]} 38... Rf3+ {[%clk
0:00:07]} 39. Ke4 {[%clk 0:01:21.1]} 39... Rf2 {[%clk 0:00:04.6]} 40. a6 {[%clk
0:01:21.2]} 40... Ra2 {[%clk 0:00:04.1]} 41. a7 {[%clk 0:01:21.1]} 41... Kg7
{[%clk 0:00:04.4]} 42. Ke5 {[%clk 0:01:19.5]} 42... Kg6 {[%clk 0:00:04]} 43. Kd6
{[%clk 0:01:19.9]} 43... Kf5 {[%clk 0:00:03.5]} 44. Kxc5 {[%clk 0:01:20]} 44...
f6 {[%clk 0:00:03.4]} 45. Kb6 {[%clk 0:01:20.1]} 45... e5 {[%clk 0:00:03.4]} 46.
Rc5 {[%clk 0:01:20]} 46... Rb2+ {[%clk 0:00:02.6]} 47. Rb5 {[%clk 0:01:20.2]}
47... Ra2 {[%clk 0:00:02.3]} 48. Ra5 {[%clk 0:01:20.7]} 48... Rb2+ {[%clk
0:00:02.7]} 49. Kc5 {[%clk 0:01:20.9]} 49... Rd2 {[%clk 0:00:01.8]} 50. a8=Q
{[%clk 0:01:20.8]} 50... Rd7 {[%clk 0:00:02.3]} 51. Qc8 {[%clk 0:01:19.9]} 51...
Ke6 {[%clk 0:00:02.4]} 52. Ra6+ {[%clk 0:01:19.5]} 52... Ke7 {[%clk 0:00:02.9]}
53. Rc6 {[%clk 0:01:18.6]} 53... e4 {[%clk 0:00:01.4]} 54. Rc7 {[%clk
0:01:18.5]} 54... Rxc7+ {[%clk 0:00:01.3]} 55. Qxc7+ {[%clk 0:01:19]} 55... Ke6
{[%clk 0:00:02.2]} 56. Qd6+ {[%clk 0:01:18.9]} 56... Kf5 {[%clk 0:00:03.1]} 57.
Qd5+ {[%clk 0:01:19.2]} 57... Kg6 {[%clk 0:00:03.7]} 58. Qxe4+ {[%clk
0:01:19.5]} 58... f5 {[%clk 0:00:04.6]} 59. Qe6+ {[%clk 0:01:19.9]} 59... Kh5
{[%clk 0:00:05.5]} 60. h3 {[%clk 0:01:15.9]} 60... f4 {[%clk 0:00:05.4]} 61.
gxf4 {[%clk 0:01:15.7]} 61... Kh4 {[%clk 0:00:06]} 62. Qg4# {[%clk 0:01:13.4]}
1-0

[Event "Late-Titled-Tuesday-Blitz-December-26-2023"]
[Site "Chess.com"]
[Date "2023.12.26"]
[Round "2"]
[White "Slovafn"]
[Black "TEREZANA"]
[Result "0-1"]
[WhiteElo "2317"]
[BlackElo "2510"]
[TimeControl "180+1"]
[EndTime "14:17:45 PST"]
[Termination "TEREZANA won by resignation"]

1. e4 {[%clk 0:02:41.5]} 1... e5 {[%clk 0:02:58.1]} 2. Nf3 {[%clk 0:02:40.4]}
2... Nc6 {[%clk 0:02:58.8]} 3. Bb5 {[%clk 0:02:40.2]} 3... Nf6 {[%clk
0:02:58.2]} 4. O-O {[%clk 0:02:39.5]} 4... Nxe4 {[%clk 0:02:57.9]} 5. d4 {[%clk
0:02:39.2]} 5... Nd6 {[%clk 0:02:56.1]} 6. Bxc6 {[%clk 0:02:37.5]} 6... dxc6
{[%clk 0:02:56.1]} 7. dxe5 {[%clk 0:02:38.4]} 7... Nf5 {[%clk 0:02:54.3]} 8.
Qxd8+ {[%clk 0:02:39]} 8... Kxd8 {[%clk 0:02:55.2]} 9. Nc3 {[%clk 0:02:39.1]}
9... Ke8 {[%clk 0:02:50.6]} 10. b3 {[%clk 0:02:38.9]} 10... Be6 {[%clk
0:02:48.8]} 11. Bb2 {[%clk 0:02:38.7]} 11... Rd8 {[%clk 0:02:46.6]} 12. Rad1
{[%clk 0:02:30.4]} 12... Be7 {[%clk 0:02:46.8]} 13. Rxd8+ {[%clk 0:02:23.7]}
13... Kxd8 {[%clk 0:02:43.9]} 14. Rd1+ {[%clk 0:02:21.7]} 14... Kc8 {[%clk
0:02:43.6]} 15. Ne4 {[%clk 0:02:16.9]} 15... Bd5 {[%clk 0:02:41.8]} 16. Ng3
{[%clk 0:02:00.1]} 16... Nxg3 {[%clk 0:02:41.8]} 17. hxg3 {[%clk 0:01:59.8]}
17... Rd8 {[%clk 0:02:37.7]} 18. c4 {[%clk 0:01:24.3]} 18... Be4 {[%clk
0:02:31.8]} 19. Rxd8+ {[%clk 0:01:18.7]} 19... Kxd8 {[%clk 0:02:32.7]} 20. Nd2
{[%clk 0:01:16.4]} 20... Bd3 {[%clk 0:02:29.6]} 21. Bd4 {[%clk 0:01:07.3]} 21...
Bb4 {[%clk 0:02:26.2]} 22. Be3 {[%clk 0:00:44.5]} 22... Bc3 {[%clk 0:02:03.2]}
23. c5 {[%clk 0:00:31.7]} 23... Bxe5 {[%clk 0:01:59.5]} 24. Nf3 {[%clk
0:00:24.6]} 24... Bf6 {[%clk 0:01:47.9]} 25. g4 {[%clk 0:00:23.6]} 25... h6
{[%clk 0:01:47.6]} 26. g5 {[%clk 0:00:22.4]} 26... hxg5 {[%clk 0:01:47.2]} 27.
Nxg5 {[%clk 0:00:22.4]} 27... Bg6 {[%clk 0:01:34]} 28. g4 {[%clk 0:00:20.6]}
28... Kd7 {[%clk 0:01:32.9]} 29. Nh3 {[%clk 0:00:20.1]} 29... Bb1 {[%clk
0:01:24.6]} 30. a3 {[%clk 0:00:19.6]} 30... Bc2 {[%clk 0:01:14.7]} 31. b4 {[%clk
0:00:19.5]} 31... Bb2 {[%clk 0:01:14.9]} 32. Ng5 {[%clk 0:00:18.9]} 32... Ke7
{[%clk 0:01:09.2]} 33. Nf3 {[%clk 0:00:13]} 33... Bxa3 {[%clk 0:01:00.5]} 34.
Bd2 {[%clk 0:00:13.3]} 34... Bb2 {[%clk 0:00:57]} 35. Kf1 {[%clk 0:00:12.5]}
35... Bd3+ {[%clk 0:00:54.2]} 36. Kg2 {[%clk 0:00:13]} 36... Be4 {[%clk
0:00:53.5]} 37. Kg3 {[%clk 0:00:13.9]} 37... Bxf3 {[%clk 0:00:53.1]} 38. Kxf3
{[%clk 0:00:14.8]} 38... Bd4 {[%clk 0:00:46.3]} 39. Ke2 {[%clk 0:00:12]} 39...
Ke6 {[%clk 0:00:44.9]} 40. f4 {[%clk 0:00:12.1]} 40... Kd5 {[%clk 0:00:45.2]}
41. Kd3 {[%clk 0:00:12.4]} 41... b6 {[%clk 0:00:45.2]} 42. cxb6 {[%clk
0:00:12.2]} 42... cxb6 {[%clk 0:00:46.1]} 43. Be1 {[%clk 0:00:11.9]} 43... c5
{[%clk 0:00:45.9]} 44. bxc5 {[%clk 0:00:12.1]} 44... bxc5 {[%clk 0:00:46.8]} 45.
Ba5 {[%clk 0:00:12]} 45... c4+ {[%clk 0:00:43.8]} 46. Kd2 {[%clk 0:00:12.7]}
46... Ke4 {[%clk 0:00:44.1]} 47. Bc7 {[%clk 0:00:13]} 47... Be3+ {[%clk
0:00:43.1]} 48. Kc3 {[%clk 0:00:12.6]} 48... Bxf4 {[%clk 0:00:42.1]} 0-1